Cogmind - Beta 14 @@@ ROGUE MODE // 2024.09.28 @ 19:55:26 Player: Cereal Killer Result: Smashed by cave-in Performance ------------- Evolutions (0) 0 Regions Visited (3) 600 Robots Destroyed (16) 80 Value Destroyed (342) 342 Prototype IDs (5) 100 Alien Tech Used (0) 0 Bonus (0) 0 TOTAL SCORE: 1122 Bonus ------- None Cogmind --------- Core Integrity 0/250 Matter 275/300 Energy 100/100 System Corruption 13% Temperature Cool (0) Movement Rolling (100) Location -9/Recycling Parts ------- > --- POWER (1) -------- (None) > --- PROPULSION (2) --- Compact Wheel > --- UTILITY (2) ------ Medium Storage Unit > --- WEAPON (2) ------- Improved Light Cannon > --- INVENTORY (10) --- Subdweller Power Source Light Treads Compact Wheel Huge Storage Unit High-capacity Matter Pod (200) Targeting Computer Scrap Shield Shield Generator Particle Gun Peak State ------------ > --- POWER ------------ (None) > --- PROPULSION ------- Compact Wheel Compact Wheel > --- UTILITY ---------- Medium Storage Unit Hardened Light Armor Plating > --- WEAPON ----------- Particle Gun Spread Laser > --- INVENTORY -------- Subdweller Power Source Light Treads Compact Wheel Heat Sink Huge Storage Unit High-capacity Matter Pod Targeting Computer Scrap Shield Shield Generator [Rating: 10] Favorites ----------- Power Ion Engine Engine Ion Engine Propulsion Compact Wheel Wheel Compact Wheel Utility Medium Storage Unit Device Improved Terrain Scanner Storage Medium Storage Unit Protection Hardened Light Armor Plating Weapon EM Pulse Gun Energy Gun EM Pulse Gun Ballistic Gun Assault Rifle Ballistic Cannon Improved Light Cannon Launcher Grenade Launcher Build | -11 -10 -10 -9 ------- Run | Yrd Mat Sub Rec Slots Evolved . | . . . . Power . | . . . . Propulsion . | . . . . Utility . | . . . . Weapon . | . . . . Parts Attached 22 | 7 6 3 6 Power 2 | 1 . 1 . Engine 2 | 1 . 1 . Core . | . . . . Reactor . | . . . . Propulsion 3 | 2 . 1 . Treads . | . . . . Leg . | . . . . Wheel 3 | 2 . 1 . Hover . | . . . . Flight . | . . . . Utility 5 | 2 1 . 2 Device 1 | 1 . . . Storage 2 | 1 1 . . Processor . | . . . . Hackware . | . . . . Protection 2 | . . . 2 Artifact . | . . . . Weapon 12 | 2 5 1 4 Energy Gun 6 | 2 2 . 2 Energy Cannon . | . . . . Ballistic Gun 2 | . 2 . . Ballistic Cannon 1 | . . . 1 Launcher 3 | . 1 1 1 Special Weapon . | . . . . Impact Weapon . | . . . . Slashing Weapon . | . . . . Piercing Weapon . | . . . . Special Melee Weapon . | . . . . Unidentified Prototypes . | . . . . Parts Lost 11 | . 3 5 3 Power 2 | . . 2 . Propulsion 2 | . . 1 1 Utility 2 | . 1 . 1 Weapon 5 | . 2 2 1 Highest Loss Streak 5 | . 2 5 3 To Critical Strikes . | . . . . Average Slot Usage (%) 80 | . 87 75 78 Engine 6 | . 14 10 . Wheel 27 | . 28 26 28 Device 2 | . 6 . . Storage 14 | . 14 14 14 Protection 5 | . . . 11 Energy Gun 11 | . 17 . 12 Ballistic Gun 4 | . 5 12 . Ballistic Cannon 5 | . . . 10 Launcher 2 | . . 10 . Peak Build Rating 10 | 9 9 7 10 Average Rating 7 | 4 7 5 8 On Entrance 4 | . 9 5 4 Naked Turns . | . . . . Heaviest Build 22 | 15 17 20 22 Greatest Support 32 | 26 26 32 32 Greatest Overweight (x) . | . . . . Average Overweight (x) . | . . . . Largest Inventory Capacity 10 | 8 10 10 10 Average Capacity 9 | 7 8 10 10 Most Carried 10 | 5 8 10 10 Average Carried 7 | 2 4 8 9 Final Capacity 10 | 8 10 10 10 Final Carried 10 | 2 8 8 10 Class Distribution -------------------- 100% | Mutant Dominant Class ---------------- Mutant | -10/Materials Mutant | -10/Subcaves Mutant | -9/Recycling Resources | -11 -10 -10 -9 ----------- Run | Yrd Mat Sub Rec Matter Collected 628 | 270 123 73 162 Remotely . | . . . . Salvage Created 475 | 66 304 64 41 Parts 27 | 5 17 4 1 Haulers Intercepted 1 | . 1 . . Recyclers Shooed 1 | . 1 . . Parts Field Recycled . | . . . . Retrieved Matter . | . . . . Parts Self-Destructed 11 | . . 11 . Prevented . | . . . . Kills | -11 -10 -10 -9 ------- Run | Yrd Mat Sub Rec Combat Hostiles Destroyed 10 | . 6 3 1 Guns 5 | . 2 2 1 AOE 4 | . 3 1 . Classes Destroyed 9 | 2 4 2 1 Tunneler 1 | 1 . . . Hauler 1 | . 1 . . Recycler 2 | 1 1 . . Turret 1 | . . 1 . Watcher 1 | . 1 . . Swarmer 5 | . 3 2 . Grunt 3 | . 3 . . Programmer 1 | . . . 1 Subdweller 1 | . . 1 . Best Kill Streak 3 | 2 3 2 1 Combat Bots Only 3 | . 3 2 1 Max Kills in Single Turn 1 | 1 1 1 1 Gunslinging . | . . . . Exploded 1 | . 1 1 . Melee . | . . . . Uniques/NPCs Destroyed . | . . . . Combat | -11 -10 -10 -9 -------- Run | Yrd Mat Sub Rec Hostile Shots Fired 122 | . 38 78 6 Missed 45 | . 7 36 2 Damage Taken 1054 | . 359 328 367 Core 331 | . 92 122 117 Absorbed by Shields . | . . . . Core Remaining (%) 100 | 100 . . . Volleys Fired 65 | 2 44 14 5 Largest 2 | 2 2 2 2 Hottest 104 | 80 80 50 104 Shots Fired 99 | 4 68 20 7 Gun 86 | 4 66 14 2 Cannon 2 | . . . 2 Launcher 11 | . 2 6 3 Special . | . . . . Kinetic 41 | . 25 14 2 Thermal 2 | . . . 2 Explosive 11 | . 2 6 3 Electromagnetic 45 | 4 41 . . Robot Hit Streak 10 | 2 10 7 1 Robot Miss Streak 3 | . 3 3 2 Penetration Max . | . . . . Secondary Targets . | . . . . Shots Hit Robots 56 | 2 41 11 2 Core Hits 26 | 2 14 9 1 Critical Kills . | . . . . Critical Parts Destroyed . | . . . . Critical Strikes . | . . . . Melee Attacks . | . . . . Impact . | . . . . Slashing . | . . . . Piercing . | . . . . Sneak Attacks . | . . . . Combat Hostiles . | . . . . Follow-up Attacks . | . . . . Damage Inflicted 1085 | 28 720 288 49 Guns 662 | 28 513 99 22 Cannons 26 | . . . 26 Explosions 397 | . 207 189 1 Melee . | . . . . Ramming . | . . . . Kinetic 314 | . 189 99 26 Thermal 105 | . 83 . 22 Explosive 314 | . 124 189 1 Electromagnetic 352 | 28 324 . . Impact . | . . . . Slashing . | . . . . Piercing . | . . . . Highest Corruption . | . . . . Average Corruption . | . . . . Corruption Purged . | . . . . Corruption Blocked . | . . . . Overload Shots . | . . . . Overflow Damage . | . . . . Projectiles . | . . . . Explosions . | . . . . Melee . | . . . . Knockbacks 1 | . . . 1 Impact . | . . . . Kinetic 1 | . . . 1 Secondary . | . . . . Self-Inflicted Damage 14 | . . 14 . Shots 1 | . . 1 . Rammed . | . . . . Targets Rammed . | . . . . Kicked . | . . . . Crushed . | . . . . Highest Temperature 205 | 36 205 . 44 Average Temperature 65 | 20 74 . 22 Received Heat Transfer 375 | . 201 174 . Siege Activations . | . . . . Robots Corrupted 1 | . 1 . . Combat Hostiles 1 | . 1 . . Parts Fried 3 | . 3 . . Impact Corruptions . | . . . . Robots Melted . | . . . . Combat Hostiles . | . . . . Parts Melted . | . . . . Heat Transferred 137 | . 100 . 37 Parts Sabotaged . | . . . . Parts Stolen . | . . . . Parts Stripped . | . . . . Power Chain Reactions 2 | . 2 . . Alert | -11 -10 -10 -9 ------- Run | Yrd Mat Sub Rec Peak Influence 238 | 10 238 . 211 Initial 128 | . 6 . 128 Average 138 | 3 160 . 145 Maximum Alert Level 1 | . 1 . 1 Low Security (%) 85 | 100 59 . 98 Level 1 14 | . 40 . 1 Level 2 . | . . . . Level 3 . | . . . . Level 4 . | . . . . Level 5 . | . . . . High Security . | . . . . Max Security . | . . . . Squads Dispatched 1 | . 1 . . Investigation 1 | . 1 . . Extermination . | . . . . Reinforcement . | . . . . Assault . | . . . . Garrison . | . . . . Intercept . | . . . . Searches Triggered . | . . . . Construction Impeded . | . . . . Haulers Reinforced . | . . . . Active Scanning Responses . | . . . . Cargo Convoy Interrupts . | . . . . Stealth | -11 -10 -10 -9 --------- Run | Yrd Mat Sub Rec Distress Signals 1 | . 1 . . Communications Jammed . | . . . . Distress Signals . | . . . . Times Spotted 26 | . 12 11 3 Peak Tracking Total 4 | . 4 4 3 Tactical Retreats 6 | . 1 3 2 Traps | -11 -10 -10 -9 ------- Run | Yrd Mat Sub Rec Traps Triggered . | . . . . Indirectly . | . . . . Trap Hack Attempts . | . . . . Triggered . | . . . . Disarmed . | . . . . Reprogrammed . | . . . . Reused . | . . . . Traps Extracted . | . . . . Installed . | . . . . Triggered . | . . . . Machines | -11 -10 -10 -9 ---------- Run | Yrd Mat Sub Rec Machines Disabled 4 | . 1 3 . Max in Single Turn 2 | . 1 2 . Machines Repaired . | . . . . Machines Dismantled . | . . . . Machines Sabotaged . | . . . . Overloaded Fab Kills . | . . . . Hacking | -11 -10 -10 -9 --------- Run | Yrd Mat Sub Rec Machines Accessed 6 | . 3 . 3 Terminals 5 | . 3 . 2 Fabricators . | . . . . Repair Stations . | . . . . Recycling Units 1 | . . . 1 Scanalyzers . | . . . . Garrison Access . | . . . . Total Hacks 21 | . 11 . 10 Successful 10 | . 5 . 5 Failed 11 | . 6 . 5 Catastrophic 1 | . 1 . . Database Lockouts . | . . . . Manual 7 | . 2 . 5 Terminals 20 | . 11 . 9 Fabricators . | . . . . Repair Stations . | . . . . Recycling Units 1 | . . . 1 Scanalyzers . | . . . . Garrison Access . | . . . . Terminal Hacks 6 | . 4 . 2 Prototype ID Bank 4 | . 2 . 2 Locate Traps 1 | . 1 . . Zone Layout 1 | . 1 . . Fabricator Hacks . | . . . . Repair Station Hacks . | . . . . Recycling Unit Hacks 1 | . . . 1 Report Inventory 1 | . . . 1 Scanalyzer . | . . . . Garrison Access Hacks . | . . . . Unauthorized Hacks 3 | . 1 . 2 Terminals 3 | . 1 . 2 Botnet 3 | . 1 . 2 Fabricators . | . . . . Repair Stations . | . . . . Recycling Units . | . . . . Scanalyzers . | . . . . Garrison Access . | . . . . Data Cores Recovered . | . . . . Used . | . . . . Hacking Detections 6 | . 3 . 3 Full Trace Events 4 | . 2 . 2 Feedback Events . | . . . . Feedback Blocked . | . . . . Robot Schematics Acquired . | . . . . Robots Built . | . . . . Authchips . | . . . . Time . | . . . . Total Robot Build Rating . | . . . . Part Schematics Acquired . | . . . . Parts Built . | . . . . Authchips . | . . . . Time . | . . . . Total Part Build Rating . | . . . . Parts Repaired . | . . . . Time . | . . . . Parts Recycled . | . . . . Recycled Matter . | . . . . Retrieved Matter . | . . . . Retrieved Components . | . . . . Parts Scanalyzed . | . . . . Part Schematics Acquired . | . . . . Parts Damaged . | . . . . Bothacking | -11 -10 -10 -9 ------------ Run | Yrd Mat Sub Rec Used RIF Installer . | . . . . Robots Hacked . | . . . . Non-combat . | . . . . Combat . | . . . . Robot Hacks Applied . | . . . . Relay Couplers Released . | . . . . Fabnet Peak Effective % . | . . . . Robots Rewired . | . . . . Allies Hacked . | . . . . Hacks Repelled . | . . . . Allies | -11 -10 -10 -9 -------- Run | Yrd Mat Sub Rec Total Allies . | . . . . Largest Group . | . . . . Highest-Rated Group . | . . . . Highest-Rated Ally . | . . . . Total Orders . | . . . . Ally Attacks . | . . . . Total Damage . | . . . . Kills . | . . . . Allies Corrupted . | . . . . Allies Melted . | . . . . Intel | -11 -10 -10 -9 ------- Run | Yrd Mat Sub Rec Robot Analysis Total . | . . . . Derelict Logs Recovered . | . . . . Drone Launches . | . . . . Drone Recoveries . | . . . . Exploration | -11 -10 -10 -9 ------------- Run | Yrd Mat Sub Rec Turns Passed 887 | 60 253 167 407 Spaces Moved 674 | 48 130 117 379 Core 18 | 18 . . . Treads . | . . . . Legs . | . . . . Wheels 656 | 30 130 117 379 Hover . | . . . . Flight . | . . . . Fastest Speed 50 | 50 90 90 100 Average Speed 94 | 75 90 90 100 Slowest Speed 100 | 90 90 100 100 Overloaded Moves . | . . . . Propulsion Burnouts . | . . . . Robots Hopped . | . . . . Cave-ins Triggered 1 | . . . 1 Exploration Rate (%) 23 | 3 21 5 64 Regions Visited 3 Branch Regions 2 Pre-discovered Areas . | . . . . Known Exits Taken . | . . . . Unknown Exits Taken 3 | 1 1 1 . Scrap Searched . | . . . . Spaces Dug 22 | . . 5 17 Terrain Destroyed 62 | . 24 21 17 Melee . | . . . . Projectile . | . . . . AOE 62 | . 24 21 17 Terrain Rammed . | . . . . Walls Destroyed . | . . . . Machines Disabled . | . . . . Actions | -11 -10 -10 -9 --------- Run | Yrd Mat Sub Rec Total 821 | 67 196 157 401 Wait 34 | 2 8 22 2 Move 671 | 47 129 116 379 Hop . | . . . . Pick Up 24 | 9 8 2 5 Fast Attach 3 | . . . 3 Attach 13 | 7 2 3 1 Detach . | . . . . Swap 6 | . 4 . 2 Drop 5 | . 1 . 4 Fire 65 | 2 44 14 5 Melee . | . . . . Ram . | . . . . Kick . | . . . . Crush . | . . . . Escape Stasis . | . . . . Rewire . | . . . . Trap . | . . . . Miscellaneous . | . . . . Route ------- -11/Scrapyard -10/Materials -10/Subcaves -9/Recycling History --------- Turn | Location | Event 13 | -11/Scrapyard | Discovered new exit (range 16) 61 | -11/Scrapyard | Entered Materials 255 | -10/Materials | Discovered new exit (range 9) 314 | -10/Materials | Build established: Mutant 314 | -10/Materials | Entered Subcaves 395 | -10/Subcaves | Core integrity fell below 50% 450 | -10/Subcaves | Discovered new exit (range 12) 479 | -10/Subcaves | Core integrity fell below 20% 481 | -10/Subcaves | Entered Recycling 505 | -9/Recycling | Lost 5 parts (2p1n2w) 889 | -9/Recycling | Crushed by falling debris 889 | -9/Recycling | Smashed by cave-in Last Messages --------------- Trojan loaded successfully. Testing... Terminal linked with 1 system. Awaiting botnet instructions. Dropped Heat Sink. Acquired Grenade Launcher. R-06 Scavenger collects Heat Sink. P-60 Hacker springs to life. P-60 Hacker knocked back. P-60 Hacker destroyed. R-06 Scavenger collects Imp. Heat Sink. Acquired 8 matter. The unstable cave ceiling collapses. Crushed by falling debris. Grenade Launcher destroyed. System corrupted by crushing effect (+5). Com. Wheel destroyed. System corrupted by crushing effect (+5). Hrd. Light Armor Plating destroyed. System corrupted by crushing effect (+3). Map ----- +----------------------------------------------------+ | #???"??????### # | | #???"#####?#! # | | #?? #?#!! # | | #########+##################### #? """ #?#!! # | | #?# #????????????# # """"" #?### # | | ! #?# #????????????# # """"" #???# # | | #?# #?############ # """"" #???# # | | = #?# #?# # # """ #???# # | | !#?# #?# + + ##### # | | #?# #?# # # + + | | #?# #?# # # # # | | #?# #?### #### #?# ########+# # | | #?######## ##????????##??# + | | ######?????????##??????#########+##### ####### | | ???????????????????????# # ""#???# | | ???????????????????????# [ + Y"#???# | | ???????????????????????# ##### ""#???# | | ???????????????????????# ! #???# ###???? | | ??????????????????????## #???# #?????? | | ??????????????????????#r = #???# #?????? | | ??????????????????????## #???# #?????? | | ??????????????????????## #???#%#?????? | | ??????????????????????# ! #?###+####### | | ??????????????????????# #?# ! | | ??????????????????????# [ #?# | | ??????????????????????## @ #### ###?# | | ?????????????????????#""" ###?###???# ! ! | | ?????????????????????#"Y" ###T####### ! | | ???????????????????? # | | ??????????????????? / | | ?????????????????? # ! ! | | ??????????????????######+######Y##+### # ! ! | | ???????????????????????????????##????# # ! | | ?????????????????????????????????????# # | | ?????????????????????????????????????# # ! | | ?????????????????????????????????????# #####+##### | | ?????????????????????????????????????# #???# #???? | | ?????????????????????????????????????# #???# #???? | | ?????????????????????????????????????# #???# #???? | | ?????????????????????????????????????# #???# #???? | | ?????????????????????????????????????# #???# ???? | | ?????????????????????????????????????# #???# #???? | | ?????????????????????????????????????# ??? ???? | | ?????????????????????????????????????# ??? ???? | | ?????????????????????????????????????? ??? ???? | | ?????????????????????????????????????? ??? ???? | | ?????????????????????????????????????? ???###???? | | ??????????????????????????????????????/#?????????? | | ?????????????????????????????????????? ??????????? | | ?????????????????????????????????????? ??????????? | +----------------------------------------------------+ Best States ------------- Heat Dissipation 25 Energy Generation 10 Energy Capacity 250 Matter Stores 300 Matter Capacity 300 Sight Range 16 Terrain Scan Range 16 Terrain Scan Density 10 Armor Coverage 225 Evasion (%) 50 Item Schematics ----------------- None Robot Schematics ------------------ None Fabricated ------------ Nothing Alien Tech Used ----------------- None Achievements -------------- None Challenges ------------ None Game ------ Seed ThunderTeleporterImmobilizer Manual? 0 Play Time 00:16:53 Cumulative 210.7 hours Start 2024.09.28 @ 19:43:00 End 2024.09.28 @ 19:55:26 Sessions 1 Manual Loads 0 Difficulty Rogue Special Mode None Game No. 176 Rogue 167 Adventurer 9 Explorer 0 Win Type - Total 1 Types 1/0/0/0/0/0/0/0/0 Lore% 70 Gallery% 71 Achievement% 57 Wizard Run 0 Options --------- Layout 1 ASCII 0 Keyboard 0 Movement Numpad Keybinds 0 Fullscreen 1 Font 24/Smallcaps Map View 50x35 Zoom Use 0% Tactical HUD 0 Map Filters NONE Filters NONE Steam 1 RUN: 620964dd-fe4d-46c3-b1e5-ca50bc04cca7